bitfinex/quotes_SOLUSD_20250902
["timestamp","ask_amount","ask_price","bid_price","bid_amount"]
[1756833660483,0.06,203.08,203.05,0.03]
[1756833660780,39.14,203.07,203.05,0.03]
[1756833662060,39.81,203.07,203.05,0.03]
[1756833662361,39.14,203.07,203.05,0.03]
[1756833662568,3.93462151,203.06,203.05,0.03]
[1756833662983,3.93462151,203.06,203.03,0.03]
[1756833662984,4.21894465,203.06,203.03,0.03]
[1756833663183,29.26462151,203.04,203.03,0.03]
[1756833663484,4.92538048,203.03,203.02,0.03]
[1756833663658,5.59538048,203.03,203.02,0.03]
[1756833663859,8.86000199,203.03,203.02,0.03]
[1756833664475,9.2864867,203.03,203.01,0.03]
[1756833664659,16.46526912,203.02,203.01,0.03]
[1756833665098,17.13526912,203.02,203.01,0.03]
[1756833665463,53.19112038,203.02,203.01,0.03]
[1756833666097,5.59562309,203.02,203.01,0.03]
[1756833666271,0.06,203.06,203.01,0.03]
[1756833666471,0.06,203.06,203.02,13.59559401]
[1756833666472,8.23117415,203.06,203.02,13.59559401]
[1756833666680,0.06,203.06,203.05,21.76676816]
[1756833666872,0.06,203.06,203.05,22.13676816]
[1756833667559,0.06,203.06,203.05,13.59559401]
[1756833667761,0.06,203.06,203.05,26.6916635]
[1756833667961,0.06,203.06,203.05,27.0616635]
[1756833669366,0.06,203.06,203.05,13.59559401]
[1756833669578,0.06,203.06,203.03,13.59559401]
[1756833670706,8.84117415,203.05,203.01,0.03]
[1756833670925,8.17117415,203.03,203.01,0.03]
[1756833671114,8.17117415,203.02,203.01,0.03]
[1756833671327,8.17117415,203.03,203.01,0.03]
[1756833671624,39.14,203.02,203.01,0.03]
[1756833672132,47.31117415,203.02,203.01,0.03]
[1756833672638,47.99117415,203.02,203.01,0.03]
[1756833673612,52.14510152,203.02,203.01,0.03]
[1756833674462,57.07072461,203.02,203.01,0.03]
[1756833674950,44.74562309,203.02,203.01,0.03]
[1756833675519,57.35504775,203.02,203.01,0.03]
[1756833676750,57.49720932,203.02,203.01,1e-08]
[1756833676939,57.49720932,203.02,203.0,1e-08]
[1756833677261,38.46726309,203.01,203.0,1e-08]
[1756833677437,26.14216157,203.01,203.0,1e-08]
[1756833677633,39.14726309,203.01,203.0,1e-08]
[1756833677833,26.0,202.97,202.92,0.03]
[1756833678032,26.14216157,202.92,202.84,0.1]
[1756833678239,12.32510152,202.86,202.84,0.1]
[1756833678444,39.14,202.86,202.84,0.1]
[1756833679158,39.14,202.86,202.85,12.42510152]
[1756833679735,39.14,202.87,202.85,26.45069553]
[1756833679934,12.32510152,202.91,202.86,12.32510152]
[1756833680152,39.14,202.9,202.86,12.32510152]
[1756833680456,39.14,202.9,202.85,26.45069553]
[1756833680857,52.14510152,202.9,202.85,13.69559401]
[1756833681435,39.14,202.91,202.89,12.32510152]
[1756833681756,0.06,202.95,202.91,13.59559401]
[1756833681931,39.2,202.95,202.94,12.32510152]
[1756833682361,39.2,202.95,202.93,12.32510152]
[1756833682964,39.2,202.95,202.93,13.59559401]
[1756833683347,39.2,202.95,202.93,12.32510152]
[1756833683538,39.2,202.95,202.94,12.32510152]
[1756833684365,39.2,202.95,202.93,12.32510152]
[1756833685250,39.16,202.94,202.93,12.32510152]
[1756833685862,0.06,202.95,202.93,12.32510152]
[1756833686062,0.06,202.95,202.94,12.32510152]
[1756833686265,39.22,202.95,202.94,12.32510152]
[1756833687060,0.06,202.95,202.94,31.27826032]
[1756833687941,0.06,202.95,202.94,13.59559401]
[1756833688341,39.9,202.95,202.9,13.59559401]
[1756833688537,39.9,202.95,202.92,13.59559401]
[1756833689045,39.9,202.95,202.89,12.35510152]
[1756833689046,0.68,202.94,202.89,12.35510152]
[1756833689248,0.68,202.93,202.9,13.59559401]
[1756833689453,0.68,202.92,202.9,13.59559401]
[1756833689649,0.74,202.95,202.91,12.32510152]
[1756833689843,0.74,202.95,202.92,12.32510152]
[1756833689844,0.06,202.95,202.92,12.32510152]
[1756833690049,39.16,202.94,202.92,12.32510152]
[1756833690352,39.16,202.94,202.92,13.59559401]
[1756833690867,39.84,202.94,202.92,13.59559401]
[1756833691068,39.16,202.94,202.92,13.59559401]
[1756833691274,39.84,202.94,202.91,12.32510152]
[1756833691769,0.68,202.93,202.9,12.32510152]
[1756833692069,39.16,202.92,202.91,12.32510152]
[1756833692274,39.16,202.92,202.89,0.03]
[1756833692778,0.68,202.91,202.89,0.03]
[1756833692950,13.00510152,202.91,202.89,0.03]
[1756833693146,5.60853622,202.9,202.89,0.03]
[1756833694071,0.68,202.9,202.89,0.03]
[1756833694972,13.00510152,202.9,202.89,0.03]
[1756833695174,17.93363774,202.9,202.89,0.03]
[1756833695772,13.00510152,202.9,202.89,0.03]
[1756833695956,52.16510152,202.9,202.89,0.03]
[1756833696274,39.16,202.9,202.89,12.35510152]
[1756833697750,39.16,202.9,202.89,25.95069553]
[1756833697976,39.16,202.9,202.89,13.62559401]
[1756833698173,39.16,202.9,202.89,25.95069553]
[1756833698558,39.84,202.9,202.89,0.03]
[1756833699453,44.76853622,202.9,202.89,0.03]
[1756833699974,57.09363774,202.9,202.87,0.03]
[1756833700164,12.32510152,202.88,202.87,0.03]
[1756833700677,13.00510152,202.88,202.87,0.03]
[1756833701364,13.28942466,202.88,202.87,0.03]
[1756833701667,18.21844674,202.88,202.87,0.03]
[1756833701870,44.76902208,202.88,202.87,0.03]
[1756833702076,57.0941236,202.88,202.87,0.03]
[1756833702667,17.9341236,202.88,202.87,0.03]
[1756833702859,39.16,202.88,202.87,0.03]
[1756833703265,5.63853622,202.9,202.87,0.03]
[1756833703461,39.16,202.89,202.88,12.32510152]
[1756833703661,39.16,202.89,202.88,25.92069553]
[1756833704265,0.06,202.92,202.89,13.59559401]
[1756833704462,0.06,202.92,202.91,12.32510152]
[1756833704779,39.22,202.92,202.89,13.59559401]
[1756833704989,39.22,202.92,202.91,12.32510152]
[1756833706873,39.22,202.92,202.88,5.3889737]
[1756833707080,39.22,202.92,202.91,12.32510152]
[1756833708484,0.06,202.92,202.91,25.92069553]
[1756833709078,0.06,202.92,202.91,30.84898886]
[1756833709282,0.06,202.92,202.91,25.92069553]
[1756833710985,0.06,202.92,202.91,13.59559401]
[1756833711291,0.77,202.92,202.87,13.62559401]
[1756833711468,12.32510152,202.9,202.87,0.03]
[1756833711781,44.08881275,202.89,202.87,0.03]
[1756833711983,44.79881275,202.89,202.87,0.03]
[1756833712770,0.71,202.88,202.87,0.03]
[1756833714271,5.63902208,202.88,202.87,0.03]
[1756833714591,0.71,202.88,202.87,0.03]
[1756833715195,5.63902208,202.88,202.87,0.03]
[1756833715409,0.71,202.88,202.87,0.03]
[1756833715581,39.16,202.89,202.87,0.03]
[1756833716287,39.87,202.89,202.87,0.03]
[1756833716486,0.71,202.88,202.87,0.03]
[1756833716869,39.16,202.88,202.87,12.35510152]
[1756833717595,39.87,202.88,202.87,0.03]
[1756833719104,0.71,202.88,202.87,0.03]
[1756833719472,39.87,202.88,202.87,0.03]
[1756833720411,39.16,202.88,202.87,12.35510152]
[1756833721095,39.87,202.88,202.87,0.03]
[1756833721298,44.79902208,202.88,202.87,0.03]
[1756833722479,57.1241236,202.88,202.87,0.03]
[1756833722671,44.79902208,202.88,202.87,0.03]
[1756833723091,39.16,202.88,202.87,0.03]
[1756833723481,39.87,202.88,202.87,0.03]
[1756833723877,0.71,202.88,202.87,0.03]
[1756833724076,39.87,202.88,202.87,0.03]
[1756833724272,52.19510152,202.88,202.87,0.03]
[1756833724901,39.87,202.88,202.87,0.03]
[1756833725415,0.71,202.91,202.87,12.35510152]
[1756833725578,39.16,202.9,202.88,12.32510152]
[1756833725784,0.06,202.92,202.89,12.32510152]
[1756833725994,39.16,202.91,202.89,12.32510152]
[1756833726191,39.87,202.91,202.89,12.32510152]
[1756833726395,39.16,202.91,202.88,12.32510152]
[1756833726577,39.87,202.91,202.88,12.32510152]
[1756833727982,0.71,202.9,202.87,0.03]
[1756833728188,0.71,202.9,202.88,12.32510152]
[1756833728385,0.71,202.89,202.87,0.03]
[1756833728586,39.16,202.88,202.87,0.03]
[1756833728880,39.87,202.88,202.87,0.03]
[1756833730397,44.79902208,202.88,202.87,0.03]
[1756833730717,39.16,202.88,202.87,0.03]
[1756833731005,39.87,202.88,202.87,0.03]
[1756833731207,44.79902208,202.88,202.87,0.03]
[1756833731583,57.1241236,202.88,202.87,0.03]
[1756833732011,5.63902208,202.88,202.87,0.03]
[1756833732213,44.79902208,202.88,202.87,0.03]
[1756833732513,57.1241236,202.88,202.87,0.03]
[1756833733104,39.87,202.88,202.87,0.03]
[1756833733309,44.79902208,202.88,202.87,0.03]
[1756833733513,39.87,202.88,202.87,0.03]
[1756833733887,0.71,202.88,202.87,0.03]
[1756833734305,39.16,202.88,202.87,0.03]
[1756833735114,48.01741838,202.88,202.87,0.03]
[1756833735613,52.94644046,202.88,202.87,0.03]
[1756833736020,44.76902208,202.88,202.87,0.03]
[1756833736196,52.94644046,202.88,202.87,0.03]
[1756833736389,5.60902208,202.88,202.87,0.03]
[1756833736724,52.94644046,202.88,202.87,0.03]
[1756833737088,13.78644046,202.88,202.87,0.03]
[1756833737589,52.94644046,202.88,202.87,0.03]
[1756833738698,13.78644046,202.88,202.87,0.03]
[1756833738902,0.06,202.89,202.87,8.20741838]
[1756833739221,39.16,202.88,202.87,0.03]
[1756833739396,0.06,202.89,202.87,0.03]
[1756833739597,39.84,202.88,202.87,0.03]
[1756833739820,39.16,202.88,202.87,0.03]
[1756833740920,0.06,202.89,202.87,0.03]
[1756833741107,39.2,202.89,202.88,8.63741838]
[1756833741503,39.2,202.89,202.88,22.23301239]
[1756833741813,0.06,202.89,202.88,22.23301239]
[1756833742023,0.06,202.89,202.88,25.8496423]
[1756833742317,0.06,202.89,202.88,30.77866438]
[1756833744310,0.06,202.89,202.88,22.141246]
[1756833744521,0.06,202.89,202.88,30.77866438]
[1756833746804,0.06,202.89,202.88,30.31866438]
[1756833747023,0.06,202.89,202.88,25.3896423]
[1756833747234,0.74,202.89,202.88,8.17741838]
[1756833747401,0.06,202.89,202.88,8.17741838]
[1756833749428,0.06,202.89,202.88,3.26931093]
[1756833752306,0.74,202.89,202.88,3.26931093]
[1756833753412,0.74,202.89,202.87,0.03]
[1756833753623,0.74,202.89,202.86,0.03]
[1756833753624,4.92902208,202.88,202.86,0.03]
[1756833754023,3.94931093,202.87,202.86,0.03]
[1756833754424,39.82,202.87,202.86,0.03]
[1756833754627,43.08931093,202.87,202.86,0.03]
[1756833755041,43.37363407,202.87,202.86,0.03]
[1756833755851,48.30289911,202.87,202.86,0.03]
[1756833756832,45.03358818,202.87,202.86,0.03]
[1756833757031,48.30289911,202.87,202.86,0.03]
[1756833758016,48.28289911,202.87,202.86,0.03]
[1756833761447,9.16289911,202.87,202.86,0.03]
[1756833761935,74.28289911,202.87,202.86,0.03]
[1756833763118,4.92903815,202.88,202.86,0.03]
[1756833763452,0.06,202.89,202.87,3.75931093]
[1756833763629,0.06,202.89,202.88,3.26931093]
[1756833763821,0.06,202.89,202.88,17.35490494]
[1756833764534,0.06,202.89,202.88,22.28392702]
[1756833765237,0.06,202.89,202.88,25.90116989]
[1756833765543,0.06,202.89,202.88,30.80174301]
[1756833766544,0.06,202.89,202.88,27.18450014]
[1756833767847,0.06,202.89,202.88,30.80027441]
[1756833769145,0.06,202.92,202.89,13.59559401]
[1756833769440,0.06,202.92,202.91,47.90763963]
[1756833769835,0.06,202.92,202.91,48.39763963]
[1756833770425,0.06,202.92,202.91,53.32593296]
[1756833772337,0.06,202.92,202.91,45.15604891]
[1756833772541,0.06,202.92,202.91,53.32593296]
[1756833774733,0.06,202.92,202.91,57.30050578]
[1756833775242,0.06,202.94,202.93,0.14216157]
[1756833775543,0.06,202.95,202.94,39.73775558]
[1756833775746,0.06,202.95,202.94,52.00558636]
[1756833776337,0.06,202.95,202.94,53.32520442]
[1756833777243,0.06,202.95,202.94,44.66532037]
[1756833777441,0.06,202.95,202.94,52.83520442]
[1756833779062,0.06,202.95,202.94,45.64807684]
[1756833779270,0.06,202.95,202.94,53.81796089]
[1756833779856,0.06,202.95,202.94,53.32520442]
[1756833780469,0.06,202.95,202.94,52.83520442]
[1756833781450,0.06,202.95,202.94,53.32520442]
[1756833783479,0.06,202.95,202.94,52.83520442]
[1756833783781,0.06,202.95,202.94,53.32520442]
[1756833784376,0.06,202.95,202.94,52.83520442]
[1756833784967,0.06,202.95,202.94,132.53520442]
[1756833785366,0.06,202.95,202.94,127.60763963]
[1756833785576,0.06,202.95,202.94,86.98763963]
[1756833785884,0.78,202.95,202.94,21.76547806]
[1756833786453,0.78,202.95,202.94,21.79547806]
[1756833787449,0.78,202.95,202.94,0.03]
[1756833787655,5.707322,202.95,202.94,0.03]
[1756833788160,8.97549381,202.95,202.94,0.03]
[1756833789249,5.707322,202.95,202.94,0.03]
[1756833789473,8.97549381,202.95,202.94,0.03]
[1756833789673,9.25981695,202.95,202.94,0.03]
[1756833792061,26.0,202.92,202.91,0.03]
[1756833792286,29.55249495,202.92,202.91,0.03]
[1756833792465,30.24249495,202.92,202.91,0.03]
[1756833792665,30.24249495,202.92,202.89,0.03]
[1756833792666,0.42648471,202.91,202.89,0.03]
[1756833792870,42.63249495,202.9,202.89,0.03]
[1756833793064,43.32249495,202.9,202.89,0.03]
[1756833793384,0.28432314,202.89,202.88,0.03]
[1756833793685,26.28432314,202.87,202.86,0.03]
[1756833793982,32.08760165,202.87,202.86,0.03]
[1756833795762,0.28432314,202.86,202.85,1e-08]
[1756833796085,5.39760165,202.86,202.85,1e-08]
[1756833796385,6.08760165,202.86,202.85,1e-08]
[1756833796583,6.08760165,202.86,202.83,0.1]
[1756833796584,6.22976322,202.86,202.83,0.1]
[1756833796787,0.28432314,202.83,202.76,0.03]
[1756833796965,31.39760165,202.83,202.76,0.03]
[1756833797168,32.08760165,202.83,202.76,0.03]
[1756833798015,76.09783879,202.83,202.76,5.14327851]
[1756833798162,70.70023714,202.83,202.76,0.52]
[1756833798362,5.62023714,202.83,202.78,5.11327851]
[1756833798672,44.70023714,202.83,202.78,5.11327851]
[1756833799589,49.81351565,202.83,202.78,5.11327851]
[1756833799889,49.81351565,202.83,202.77,5.11327851]
[1756833800275,49.81351565,202.83,202.76,0.03]
[1756833800477,49.81351565,202.83,202.76,5.14327851]
[1756833800685,49.81351565,202.83,202.77,5.11327851]
[1756833800985,49.81351565,202.83,202.76,0.03]
[1756833801374,49.81351565,202.83,202.77,5.11327851]
[1756833802198,49.81351565,202.83,202.76,0.03]
[1756833802502,49.81351565,202.83,202.76,5.63327851]
[1756833803300,50.09783879,202.83,202.76,0.03]
[1756833803776,49.81351565,202.83,202.76,5.14327851]
[1756833803978,49.81351565,202.83,202.77,5.60327851]
[1756833804477,49.87351565,202.83,202.77,5.60327851]
[1756833804677,49.87351565,202.83,202.79,0.03]
[1756833807315,39.14,202.83,202.81,0.49]
[1756833807616,39.14,202.83,202.81,5.11327851]
[1756833807813,49.87351565,202.83,202.79,0.03]
[1756833808313,50.15783879,202.83,202.79,0.03]
[1756833808802,50.30000036,202.83,202.79,0.03]
[1756833811492,50.15783879,202.83,202.79,0.03]
[1756833811690,49.85351565,202.83,202.79,0.03]
[1756833811889,4.99023714,202.83,202.79,5.14327851]
[1756833812092,4.99023714,202.83,202.81,5.11327851]
[1756833812093,39.12,202.83,202.81,5.11327851]
[1756833812282,39.12,202.83,202.82,5.21327851]
[1756833812482,39.12,202.83,202.82,0.1]
[1756833812687,44.05023714,202.83,202.82,0.1]
[1756833813185,44.74023714,202.83,202.82,0.1]
[1756833813503,44.05023714,202.83,202.82,0.1]
[1756833815905,0.06,202.83,202.82,0.1]
[1756833816212,39.12,202.83,202.82,0.1]
[1756833817296,0.06,202.83,202.82,19.29887252]
[1756833817497,0.06,202.83,202.82,24.22935274]
[1756833817698,0.06,202.83,202.82,24.37151431]
[1756833820557,0.06,202.86,202.85,44.85103409]
[1756833821011,0.06,202.86,202.85,45.34103409]
[1756833821400,0.06,202.86,202.85,50.27078513]
[1756833822514,0.06,202.86,202.85,45.01534505]
[1756833822812,0.06,202.86,202.85,50.12862356]
[1756833823486,0.06,202.86,202.85,50.27078513]
[1756833824108,0.06,202.88,202.85,50.27078513]
[1756833824315,0.06,202.88,202.87,49.9643126]
[1756833824517,0.06,202.88,202.87,44.85103409]
[1756833824724,0.06,202.89,202.88,13.59559401]
[1756833824912,0.06,202.91,202.9,50.10647417]
[1756833825114,0.06,202.91,202.9,50.59932779]
[1756833825427,0.06,202.91,202.9,45.64914542]
[1756833825629,0.06,202.91,202.9,55.87570244]
[1756833827035,0.06,202.91,202.9,56.16002558]
[1756833827407,0.06,202.95,202.93,13.59559401]
[1756833827732,0.06,202.95,202.94,12.32134317]
[1756833828504,0.06,202.95,202.94,25.91693718]
[1756833831724,0.06,202.95,202.94,13.59559401]
[1756833831934,0.06,202.95,202.94,25.91693718]
[1756833833835,0.06,202.95,202.94,13.59559401]
[1756833834038,0.06,202.95,202.94,25.91693718]
[1756833834548,0.74,202.95,202.94,13.59559401]
[1756833834714,0.74,202.95,202.94,25.91693718]
[1756833835228,0.06,202.95,202.94,25.91693718]
[1756833837112,0.06,202.95,202.94,13.59559401]
[1756833837429,0.06,202.95,202.94,25.91693718]
[1756833837836,0.06,202.95,202.94,31.33450197]
[1756833838140,0.06,202.95,202.94,30.84450197]
[1756833839240,0.06,202.95,202.94,25.91693718]
[1756833840146,0.06,202.95,202.94,30.84450197]
[1756833840643,0.06,202.95,202.94,25.91693718]
[1756833840939,0.74,202.95,202.94,25.91693718]
[1756833841440,0.06,202.95,202.94,25.91693718]
[1756833841645,0.06,202.95,202.94,30.84450197]
[1756833842147,0.06,202.95,202.94,31.47666354]
[1756833842524,0.06,202.95,202.94,31.96942001]
[1756833843632,0.06,202.95,202.94,19.15807684]
[1756833843839,0.06,202.95,202.94,30.98666354]
[1756833845250,0.06,202.95,202.94,30.84450197]
[1756833847053,0.06,202.95,202.94,95.96666354]
[1756833847253,0.06,202.95,202.94,97.23374315]
[1756833848351,0.06,202.95,202.94,96.45942001]
[1756833848743,0.06,202.95,202.94,96.94942001]
[1756833848946,0.06,202.95,202.94,57.47942001]
[1756833849135,0.06,202.95,202.94,56.84450197]
[1756833849633,0.06,202.95,202.94,49.76960998]
[1756833849935,0.74,202.95,202.94,39.59559401]
[1756833850130,0.74,202.95,202.94,44.69988362]
[1756833852044,0.74,202.95,202.94,18.69988362]
[1756833852956,0.06,202.95,202.94,18.69988362]
[1756833853860,0.06,202.95,202.94,23.62744841]
[1756833854154,0.06,202.95,202.94,18.69988362]
[1756833854531,0.06,202.95,202.94,23.62744841]
[1756833854733,0.06,202.95,202.94,63.73236645]
[1756833855145,0.06,202.95,202.94,62.74960998]
[1756833855463,0.06,202.95,202.94,60.91150312]
[1756833855765,0.06,202.95,202.94,55.98393833]
[1756833856137,0.06,202.95,202.94,87.68858273]
[1756833856353,0.06,202.98,202.97,13.59559401]
[1756833856545,0.06,203.0,202.99,39.59559401]
[1756833856752,0.06,203.0,202.99,95.04866933]
[1756833857057,0.06,203.0,202.99,42.86177676]
[1756833857264,0.75,203.0,202.99,42.86177676]
[1756833857441,0.06,203.0,202.99,42.86177676]
[1756833857642,0.06,203.0,202.99,47.95494226]
[1756833857945,0.06,203.0,202.99,61.01967326]
[1756833858144,0.06,203.0,202.99,52.88129331]
[1756833859656,0.06,203.0,202.99,52.73913174]
[1756833859873,0.06,203.0,202.99,91.69913174]
[1756833860252,0.06,203.0,202.99,104.90602431]
[1756833860961,0.2,203.04,203.0,13.73775558]
[1756833861145,0.2,203.04,203.03,3.26618275]
[1756833861344,0.89,203.04,203.03,3.26618275]
[1756833862337,0.89,203.04,203.03,6.86008243]
[1756833862657,0.89,203.04,203.03,3.26618275]
[1756833863163,5.81516346,203.04,203.01,3.26618275]
[1756833863457,0.69,203.03,203.0,16.86177676]
[1756833863665,0.69,203.03,203.01,3.26618275]
[1756833863857,0.69,203.02,203.01,3.26618275]
[1756833864164,0.69,203.02,203.01,16.86177676]
[1756833864355,0.89,203.04,203.01,3.26618275]
[1756833864555,0.2,203.04,203.03,3.26618275]
[1756833864762,0.2,203.04,203.03,85.41818263]
[1756833865066,0.2,203.04,203.03,85.5603442]
[1756833865469,0.2,203.07,203.04,13.73775558]
[1756833865639,1e-08,203.08,203.07,30.35299247]
[1756833865836,0.89,203.16,203.1,0.14216157]
[1756833866051,0.89,203.16,203.15,16.86177676]
[1756833867255,0.2,203.16,203.15,16.86177676]
[1756833867458,0.89,203.16,203.15,13.59559401]
[1756833867757,0.89,203.16,203.15,21.74749897]
[1756833869651,0.2,203.16,203.15,21.74749897]
[1756833870047,0.89,203.16,203.15,21.74749897]
[1756833871238,0.89,203.16,203.13,26.0]
[1756833871443,0.69,203.15,203.14,21.74749897]
[1756833871642,0.2,203.16,203.14,21.74749897]
[1756833871861,0.89,203.16,203.15,8.15190496]
[1756833872159,0.2,203.16,203.15,21.74749897]
[1756833873644,0.89,203.16,203.15,21.74749897]
[1756833876452,0.89,203.16,203.15,8.15190496]
[1756833876652,5.81222878,203.16,203.11,79.7]
[1756833876858,0.69,203.15,203.11,8.15190496]
[1756833877065,0.69,203.14,203.11,8.15190496]
[1756833877264,5.12222878,203.16,203.11,8.15190496]
[1756833877265,0.69,203.13,203.11,8.15190496]
[1756833877467,0.69,203.12,203.11,21.74749897]
[1756833877871,0.69,203.12,203.07,26.0]
[1756833878077,8.15190496,203.15,203.1,8.15190496]
[1756833878259,0.69,203.11,203.1,21.74749897]
[1756833880548,0.69,203.11,203.1,13.59559401]
[1756833880748,5.61356522,203.11,203.08,13.59559401]
[1756833880954,0.69,203.1,203.08,13.59559401]
[1756833881167,0.68,203.09,203.08,13.59559401]
[1756833881655,0.68,203.09,203.04,69.98725263]
[1756833881656,0.68,203.09,203.05,13.59559401]
[1756833881966,0.68,203.08,203.07,21.74749897]
[1756833882668,0.68,203.08,203.07,13.59559401]
[1756833882871,0.68,203.08,203.05,8.15190496]
[1756833883070,4.9234405,203.11,203.05,21.74749897]
[1756833883275,0.68,203.07,203.05,21.74749897]
[1756833883461,0.68,203.11,203.06,21.74749897]
[1756833883661,0.68,203.13,203.1,8.15190496]
[1756833884482,0.2,203.16,203.12,8.15190496]
[1756833884660,0.68,203.15,203.12,8.15190496]
[1756833884864,0.68,203.14,203.11,8.15190496]
[1756833885081,8.35190496,203.16,203.11,8.15190496]
[1756833885272,0.68,203.13,203.11,8.15190496]
[1756833885465,0.2,203.16,203.12,8.15190496]
[1756833885672,0.68,203.15,203.12,8.15190496]
[1756833885988,0.2,203.16,203.14,21.74749897]
[1756833886167,0.2,203.16,203.15,30.32588864]
[1756833886362,0.06,203.19,203.18,40.02207872]
[1756833886568,0.2,203.29,203.19,13.87991715]
[1756833886769,0.74,203.21,203.18,13.59559401]
[1756833887270,0.06,203.21,203.19,13.07338386]
[1756833887482,0.06,203.21,203.2,21.74749897]
[1756833887684,0.06,203.21,203.2,13.59559401]
[1756833887985,0.06,203.21,203.2,21.74749897]
[1756833888381,0.06,203.21,203.2,13.59559401]
[1756833888382,0.74,203.21,203.2,13.59559401]
[1756833888577,0.06,203.21,203.2,13.59559401]
[1756833889085,0.74,203.21,203.2,13.59559401]
[1756833890189,0.06,203.21,203.2,13.59559401]
[1756833890497,0.06,203.21,203.2,16.85561076]
[1756833891366,0.06,203.21,203.2,13.59559401]
[1756833891567,0.74,203.21,203.2,13.59559401]
[1756833891878,0.06,203.21,203.2,13.59559401]
[1756833892383,0.06,203.21,203.2,16.85561076]
[1756833892768,1e-08,203.24,203.23,40.02207872]
[1756833893092,0.2,203.29,203.28,26.0]
[1756833893276,0.2,203.29,203.28,82.4399339]
[1756833893468,0.2,203.29,203.28,50.52023436]
[1756833893793,0.2,203.29,203.28,89.82023436]
[1756833894162,0.2,203.29,203.28,84.90091126]
[1756833894585,0.2,203.29,203.28,89.82023436]
[1756833895093,0.2,203.29,203.28,50.52023436]
[1756833895274,0.2,203.29,203.28,89.80023436]
[1756833895476,0.2,203.29,203.28,102.81554043]
[1756833895888,0.2,203.29,203.28,47.87541699]
[1756833896075,0.2,203.29,203.28,87.13541699]
[1756833896282,0.2,203.29,203.28,47.87541699]
[1756833896781,0.2,203.29,203.28,52.79474009]
[1756833897192,0.2,203.29,203.28,13.59559401]
[1756833897384,0.2,203.29,203.28,21.73325542]
[1756833897764,0.2,203.29,203.28,52.65257852]
[1756833898190,0.2,203.29,203.28,47.73325542]
[1756833898781,0.88,203.29,203.28,18.48487027]
[1756833900192,0.88,203.29,203.25,26.0]
[1756833900396,8.13766141,203.27,203.25,13.59559401]
[1756833900625,8.13766141,203.27,203.18,17.2161504]
[1756833900778,8.81766141,203.26,203.21,8.13766141]
[1756833900971,0.68,203.26,203.22,21.73325542]
[1756833901177,0.68,203.26,203.22,26.71067613]
[1756833901596,0.2,203.29,203.26,13.59559401]
[1756833901915,8.13766141,203.27,203.24,13.59559401]
[1756833902091,5.1191136,203.29,203.24,13.59559401]
[1756833902092,8.81766141,203.26,203.24,13.59559401]
[1756833902705,0.68,203.26,203.24,13.59559401]
[1756833903011,8.81766141,203.26,203.24,13.59559401]
[1756833903197,0.68,203.25,203.24,13.59559401]
[1756833904210,0.68,203.25,203.23,13.59559401]
[1756833904404,0.68,203.25,203.2,21.73325542]
[1756833904602,5.60005383,203.25,203.2,21.73325542]
[1756833904793,0.68,203.24,203.2,21.73325542]
[1756833905494,13.05750708,203.26,203.2,21.73325542]
[1756833906002,8.13766141,203.24,203.19,65.3]
[1756833906201,0.68,203.23,203.2,13.59559401]
[1756833907422,0.2,203.29,203.25,26.0]
[1756833907601,0.2,203.29,203.28,21.73325542]
[1756833907915,8.33766141,203.29,203.26,13.59559401]